{"text_format":"3","workbook":"xlsx","n_sheets":2,"sheets":["表清单","初始数据"],"read":"whole","date_system":"1900"}

{"sheet":"表清单","index":0,"n_rows":80,"n_cols":1,"rows_kept":80}
["数据表清单"]
[{"$f":"HYPERLINK(\"models/acc_detail.xlsx\",\"账户明细表\")","v":"账户明细表"}]
[{"$f":"HYPERLINK(\"models/contract.xlsx\",\"合同表\")","v":"合同表"}]
[{"$f":"HYPERLINK(\"models/lease_contract.xlsx\",\"租赁-合同表\")","v":"租赁-合同表"}]
[{"$f":"HYPERLINK(\"models/saleprotocol.xlsx\",\"销售协议\")","v":"销售协议"}]
[{"$f":"HYPERLINK(\"models/specificdata.xlsx\",\"产品规格数据\")","v":"产品规格数据"}]
[{"$f":"HYPERLINK(\"models/account_config.xlsx\",\"账户配置表\")","v":"账户配置表"}]
[{"$f":"HYPERLINK(\"models/message.xlsx\",\"消息\")","v":"消息"}]
[{"$f":"HYPERLINK(\"models/org_type_subject.xlsx\",\"机构类型科目对照表\")","v":"机构类型科目对照表"}]
[{"$f":"HYPERLINK(\"models/order.xlsx\",\"订单\")","v":"订单"}]
[{"$f":"HYPERLINK(\"models/accounting_config.xlsx\",\"记账配置表\")","v":"记账配置表"}]
[{"$f":"HYPERLINK(\"models/ledger.xlsx\",\"总账表\")","v":"总账表"}]
[{"$f":"HYPERLINK(\"models/reseller.xlsx\",\"分销商属性表\")","v":"分销商属性表"}]
[{"$f":"HYPERLINK(\"models/jncs_bill.xlsx\",\"济南超算账单表\")","v":"济南超算账单表"}]
[{"$f":"HYPERLINK(\"models/product.xlsx\",\"产品\")","v":"产品"}]
[{"$f":"HYPERLINK(\"models/buy_log.xlsx\",\"回佣产品购买信息表\")","v":"回佣产品购买信息表"}]
[{"$f":"HYPERLINK(\"models/apv_content_template.xlsx\",\"内容模板表\")","v":"内容模板表"}]
[{"$f":"HYPERLINK(\"models/data_op.xlsx\",\"数据操作日志表\")","v":"数据操作日志表"}]
[{"$f":"HYPERLINK(\"models/customer.xlsx\",\"客户属性表\")","v":"客户属性表"}]
[{"$f":"HYPERLINK(\"models/promote_discount.xlsx\",\"促销产品折扣\")","v":"促销产品折扣"}]
[{"$f":"HYPERLINK(\"models/invoice.xlsx\",\"发票\")","v":"发票"}]
[{"$f":"HYPERLINK(\"models/userdepartment.xlsx\",\"用户部门表\")","v":"用户部门表"}]
[{"$f":"HYPERLINK(\"models/subject.xlsx\",\"科目表\")","v":"科目表"}]
[{"$f":"HYPERLINK(\"models/organization.xlsx\",\"机构\")","v":"机构"}]
[{"$f":"HYPERLINK(\"models/lease_server_data.xlsx\",\"服务器数据表\")","v":"服务器数据表"}]
[{"$f":"HYPERLINK(\"models/bill_detail.xlsx\",\"账单明细\")","v":"账单明细"}]
[{"$f":"HYPERLINK(\"models/acc_balance.xlsx\",\"账户余额表\")","v":"账户余额表"}]
[{"$f":"HYPERLINK(\"models/resource_using.xlsx\",\"资源使用日志\")","v":"资源使用日志"}]
[{"$f":"HYPERLINK(\"models/issue_detail.xlsx\",\"工单明细\")","v":"工单明细"}]
[{"$f":"HYPERLINK(\"models/lease_store_data.xlsx\",\"机房数据表\")","v":"机房数据表"}]
[{"$f":"HYPERLINK(\"models/department.xlsx\",\"部门表\")","v":"部门表"}]
[{"$f":"HYPERLINK(\"models/appcodes.xlsx\",\"应用编码表\")","v":"应用编码表"}]
[{"$f":"HYPERLINK(\"models/provider_settle_data.xlsx\",\"提供商结算数据\")","v":"提供商结算数据"}]
[{"$f":"HYPERLINK(\"models/org_roles.xlsx\",\"机构角色\")","v":"机构角色"}]
[{"$f":"HYPERLINK(\"models/issues.xlsx\",\"工单\")","v":"工单"}]
[{"$f":"HYPERLINK(\"models/invitecode.xlsx\",\"邀请码表\")","v":"邀请码表"}]
[{"$f":"HYPERLINK(\"models/order_goods.xlsx\",\"订单商品\")","v":"订单商品"}]
[{"$f":"HYPERLINK(\"models/zj_order.xlsx\",\"中金订单表\")","v":"中金订单表"}]
[{"$f":"HYPERLINK(\"models/account.xlsx\",\"机构账户表\")","v":"机构账户表"}]
[{"$f":"HYPERLINK(\"models/issues_handle.xlsx\",\"工单处理\")","v":"工单处理"}]
[{"$f":"HYPERLINK(\"models/specification.xlsx\",\"产品规格\")","v":"产品规格"}]
[{"$f":"HYPERLINK(\"models/product_type.xlsx\",\"产品类型\")","v":"产品类型"}]
[{"$f":"HYPERLINK(\"models/params.xlsx\",\"参数表\")","v":"参数表"}]
[{"$f":"HYPERLINK(\"models/apv_send_key.xlsx\",\"审核人配置表表\")","v":"审核人配置表表"}]
[{"$f":"HYPERLINK(\"models/settle_log.xlsx\",\"结算日志\")","v":"结算日志"}]
[{"$f":"HYPERLINK(\"models/accounting_log.xlsx\",\"账务流水表\")","v":"账务流水表"}]
[{"$f":"HYPERLINK(\"models/rebate_cycle.xlsx\",\"返佣周期表\")","v":"返佣周期表"}]
[{"$f":"HYPERLINK(\"models/product_salemode.xlsx\",\"产品\")","v":"产品"}]
[{"$f":"HYPERLINK(\"models/promoted_customer.xlsx\",\"促销活动获客清单\")","v":"促销活动获客清单"}]
[{"$f":"HYPERLINK(\"models/apv_data.xlsx\",\"审批流记录表\")","v":"审批流记录表"}]
[{"$f":"HYPERLINK(\"models/apv_flow.xlsx\",\"审批流配置表\")","v":"审批流配置表"}]
[{"$f":"HYPERLINK(\"models/apv_key.xlsx\",\"审批key配置表\")","v":"审批key配置表"}]
[{"$f":"HYPERLINK(\"models/jncs_usermapping.xlsx\",\"济南超算用户对照表\")","v":"济南超算用户对照表"}]
[{"$f":"HYPERLINK(\"models/validatecode.xlsx\",\"验证码表\")","v":"验证码表"}]
[{"$f":"HYPERLINK(\"models/lease_product_data.xlsx\",\"租赁-产品数据表\")","v":"租赁-产品数据表"}]
[{"$f":"HYPERLINK(\"models/users.xlsx\",\"用户\")","v":"用户"}]
[{"$f":"HYPERLINK(\"models/invoice_attr.xlsx\",\"开票信息表\")","v":"开票信息表"}]
[{"$f":"HYPERLINK(\"models/promoting.xlsx\",\"促销活动\")","v":"促销活动"}]
[{"$f":"HYPERLINK(\"models/permission.xlsx\",\"权限\")","v":"权限"}]
[{"$f":"HYPERLINK(\"models/cart_goods.xlsx\",\"购物车商品明细\")","v":"购物车商品明细"}]
[{"$f":"HYPERLINK(\"models/customer_cart.xlsx\",\"客户购物车\")","v":"客户购物车"}]
[{"$f":"HYPERLINK(\"models/rolepermission.xlsx\",\"角色权限表\")","v":"角色权限表"}]
[{"$f":"HYPERLINK(\"models/userroles.xlsx\",\"用户角色\")","v":"用户角色"}]
[{"$f":"HYPERLINK(\"models/customer_goods.xlsx\",\"客户产品持有表\")","v":"客户产品持有表"}]
[{"$f":"HYPERLINK(\"models/zj_bill.xlsx\",\"中金账单表\")","v":"中金账单表"}]
[{"$f":"HYPERLINK(\"models/role.xlsx\",\" 角色\")","v":" 角色"}]
[{"$f":"HYPERLINK(\"models/lease_bill_data.xlsx\",\"租赁-账单详情表\")","v":"租赁-账单详情表"}]
[{"$f":"HYPERLINK(\"models/bill.xlsx\",\"账单\")","v":"账单"}]
[{"$f":"HYPERLINK(\"models/apv_status_history.xlsx\",\"审批状态记录表\")","v":"审批状态记录表"}]
[{"$f":"HYPERLINK(\"models/appcodes_kv.xlsx\",\"编码键值表\")","v":"编码键值表"}]
[{"$f":"HYPERLINK(\"models/baidu_users.xlsx\",\"百度用户同步表\")","v":"百度用户同步表"}]
[{"$f":"HYPERLINK(\"models/jncs_syncinfo.xlsx\",\"济南超算同步信息\")","v":"济南超算同步信息"}]
[{"$f":"HYPERLINK(\"models/apv_form.xlsx\",\"审批表单表\")","v":"审批表单表"}]
[{"$f":"HYPERLINK(\"models/recharge_log.xlsx\",\"充值日志\")","v":"充值日志"}]
[{"$f":"HYPERLINK(\"models/rp_rebate.xlsx\",\"返佣周期阶段表\")","v":"返佣周期阶段表"}]
[{"$f":"HYPERLINK(\"models/customer_mapping.xlsx\",\"客户同步表\")","v":"客户同步表"}]
[{"$f":"HYPERLINK(\"models/zj_users.xlsx\",\"中金用户同步表\")","v":"中金用户同步表"}]
[{"$f":"HYPERLINK(\"models/lease_bill.xlsx\",\"租赁-账单表\")","v":"租赁-账单表"}]
[{"$f":"HYPERLINK(\"models/product_provider.xlsx\",\"产品供应商\")","v":"产品供应商"}]
[{"$f":"HYPERLINK(\"models/apv_business.xlsx\",\"业务种类表\")","v":"业务种类表"}]

{"sheet":"初始数据","index":1,"n_rows":3,"n_cols":1,"rows_kept":3}
["组织"]
["科目"]
["订单"]